[Event "MČR mládeže v rapid šachu 2024 H10"]
[Site "Harrachov, Czech Republic"]
[Date "????.??.??"]
[Round "3.7"]
[White "Stepnicka Filip"]
[Black "Sedenka Zikmund"]
[Result "1-0"]
[TimeControl "20+5"]
[WhiteFideId "23771542"]
[BlackFideId "23761628"]
[WhiteElo "1531"]
[BlackElo "1477"]

1. e4 {[%clk 00:20:07]} {[%emt 00:00:02]} e5 {[%clk 00:20:09]} {[%emt
00:00:03]} 2. Nf3 {[%clk 00:20:10]} {[%emt 00:00:01]} Nc6 {[%clk 00:20:12]}
{[%emt 00:00:01]} 3. Bc4 {[%clk 00:20:10]} {[%emt 00:00:05]} Nf6 {[%clk
00:20:09]} {[%emt 00:00:08]} 4. d3 {[%clk 00:20:13]} {[%emt 00:00:02]} Bc5
{[%clk 00:20:10]} {[%emt 00:00:04]} 5. c3 {[%clk 00:20:16]} {[%emt 00:00:02]}
d6 {[%clk 00:20:14]} {[%emt 00:00:02]} 6. a4 {[%clk 00:20:09]} {[%emt
00:00:11]} Be6 {[%clk 00:19:57]} {[%emt 00:00:22]} 7. Bxe6 {[%clk 00:20:02]}
{[%emt 00:00:12]} fxe6 {[%clk 00:19:59]} {[%emt 00:00:03]} 8. b4 {[%clk
00:20:03]} {[%emt 00:00:04]} Bxb4 {[%clk 00:19:46]} {[%emt 00:00:19]} 9. cxb4
{[%clk 00:20:04]} {[%emt 00:00:03]} Nxb4 {[%clk 00:19:48]} {[%emt 00:00:03]} 10.
Qb3 {[%clk 00:19:59]} {[%emt 00:00:10]} c5 {[%clk 00:19:22]} {[%emt 00:00:31]}
11. Qxe6+ {[%clk 00:19:48]} {[%emt 00:00:16]} Qe7 {[%clk 00:19:26]} {[%emt
00:00:01]} 12. Qxe7+ {[%clk 00:19:49]} {[%emt 00:00:04]} Kxe7 {[%clk 00:19:28]}
{[%emt 00:00:02]} 13. Kd2 {[%clk 00:19:49]} {[%emt 00:00:05]} Rac8 {[%clk
00:19:23]} {[%emt 00:00:10]} 14. Ba3 {[%clk 00:19:46]} {[%emt 00:00:08]} Na6
{[%clk 00:19:11]} {[%emt 00:00:16]} 15. Nc3 {[%clk 00:19:36]} {[%emt 00:00:16]}
c4 {[%clk 00:18:50]} {[%emt 00:00:27]} 16. Nb5 {[%clk 00:19:21]} {[%emt
00:00:18]} cxd3 {[%clk 00:18:08]} {[%emt 00:00:48]} 17. Bxd6+ {[%clk 00:18:56]}
{[%emt 00:00:28]} Ke6 {[%clk 00:17:51]} {[%emt 00:00:24]} 18. Ng5+ {[%clk
00:18:55]} {[%emt 00:00:05]} Kd7 {[%clk 00:17:40]} {[%emt 00:00:16]} 19. Kxd3
{[%clk 00:18:51]} {[%emt 00:00:10]} Ng4 {[%clk 00:17:18]} {[%emt 00:00:26]} 20.
Rhf1 {[%clk 00:18:10]} {[%emt 00:00:46]} Nxh2 {[%clk 00:17:02]} {[%emt
00:00:23]} 21. Rfc1 {[%clk 00:17:30]} {[%emt 00:00:45]} Rxc1 {[%clk 00:16:54]}
{[%emt 00:00:14]} 22. Rxc1 {[%clk 00:17:32]} {[%emt 00:00:03]} Ng4 {[%clk
00:16:54]} {[%emt 00:00:04]} 23. f3 {[%clk 00:17:01]} {[%emt 00:00:37]} Nf6
{[%clk 00:16:31]} {[%emt 00:00:28]} 24. Bxe5 {[%clk 00:16:44]} {[%emt
00:00:22]} Nb4+ {[%clk 00:16:32]} {[%emt 00:00:04]} 25. Ke3 {[%clk 00:16:20]}
{[%emt 00:00:27]} Na2 {[%clk 00:16:02]} {[%emt 00:00:36]} 26. Rc7+ {[%clk
00:16:21]} {[%emt 00:00:05]} Ke8 {[%clk 00:15:18]} {[%emt 00:01:00]} 27. Rc8+
{[%clk 00:16:15]} {[%emt 00:00:11]} 1-0



[ePGN "0.1;DGT LiveChess/2.2.6"]

[Event "MČR mládeže v rapid šachu 2024 H10"]
[Site "Harrachov, Czech Republic"]
[Date "????.??.??"]
[Round "3.8"]
[White "Skoloud Josef"]
[Black "Hovhannisyan Narek"]
[Result "0-1"]
[TimeControl "20+5"]
[WhiteFideId "23744111"]
[BlackFideId "23778024"]
[WhiteElo "1683"]
[BlackElo "1570"]

1. e4 {[%emt 00:00:02]} c6 {[%emt 00:00:03]} 2. d4 {[%emt 00:00:01]} d5 3. exd5
{[%clk 00:20:11]} {[%emt 00:00:05]} cxd5 {[%clk 00:20:19]} 4. c4 {[%clk
00:20:13]} {[%emt 00:00:02]} e6 {[%clk 00:20:17]} {[%emt 00:00:06]} 5. Nc3
{[%clk 00:19:40]} {[%emt 00:00:38]} Nc6 {[%clk 00:20:11]} {[%emt 00:00:11]} 6.
Nf3 {[%clk 00:19:18]} {[%emt 00:00:27]} Nf6 {[%clk 00:20:02]} {[%emt 00:00:15]}
7. Bf4 {[%clk 00:16:40]} {[%emt 00:02:42]} Bb4 {[%clk 00:19:20]} {[%emt
00:00:47]} 8. a3 {[%clk 00:15:50]} {[%emt 00:01:03]} Bxc3+ {[%clk 00:19:20]}
{[%emt 00:00:08]} 9. bxc3 {[%clk 00:15:53]} {[%emt 00:00:02]} Bd7 {[%clk
00:19:06]} {[%emt 00:00:19]} 10. Bd3 {[%clk 00:14:22]} {[%emt 00:01:37]} dxc4
{[%clk 00:18:41]} {[%emt 00:00:29]} 11. Bxc4 {[%clk 00:14:17]} {[%emt
00:00:09]} O-O {[%clk 00:18:30]} {[%emt 00:00:16]} 12. Bd6 {[%clk 00:13:36]}
{[%emt 00:00:46]} Re8 {[%clk 00:18:23]} {[%emt 00:00:12]} 13. Ne5 {[%clk
00:12:56]} {[%emt 00:00:46]} Ne4 {[%clk 00:17:50]} {[%emt 00:00:29]} 14. Nxc6
{[%clk 00:10:56]} {[%emt 00:02:14]} Bxc6 {[%clk 00:17:45]} {[%emt 00:00:09]} 15.
Be5 {[%clk 00:10:21]} {[%emt 00:00:40]} Qg5 {[%clk 00:16:10]} {[%emt 00:01:39]}
16. Rg1 {[%clk 00:06:51]} {[%emt 00:03:35]} Nxc3 {[%clk 00:14:57]} {[%emt
00:01:18]} 17. Qc2 {[%clk 00:05:46]} {[%emt 00:01:10]} Nd5 {[%clk 00:14:13]}
{[%emt 00:00:50]} 18. Bd3 {[%clk 00:05:02]} {[%emt 00:00:49]} h6 {[%clk
00:13:48]} {[%emt 00:00:30]} 19. f4 {[%clk 00:03:41]} {[%emt 00:01:26]} Nxf4
{[%clk 00:13:15]} {[%emt 00:00:39]} 20. Be4 {[%clk 00:02:35]} {[%emt 00:01:11]}
Bxe4 {[%clk 00:12:56]} {[%emt 00:00:24]} 21. Qxe4 {[%clk 00:02:38]} {[%emt
00:00:02]} Ng6 {[%clk 00:12:48]} {[%emt 00:00:11]} 22. Bd6 {[%clk 00:01:14]}
{[%emt 00:01:29]} Rad8 {[%clk 00:11:38]} {[%emt 00:01:16]} 23. Bb4 {[%clk
00:00:54]} {[%emt 00:00:25]} Qd5 {[%clk 00:11:08]} {[%emt 00:00:35]} 24. Qxd5
{[%clk 00:00:38]} {[%emt 00:00:20]} Rxd5 {[%clk 00:11:10]} {[%emt 00:00:03]} 25.
Bc3 {[%clk 00:00:41]} {[%emt 00:00:03]} Rc8 {[%clk 00:11:10]} {[%emt 00:00:06]}
26. Kd2 {[%clk 00:00:34]} {[%emt 00:00:12]} e5 {[%emt 00:00:16]} 27. Kd3 {[%clk
00:00:13]} {[%emt 00:00:24]} Nf4+ {[%clk 00:10:37]} {[%emt 00:00:28]} 28. Ke4
{[%clk 00:00:18]} {[%emt 00:00:01]} Rxc3 {[%clk 00:10:37]} {[%emt 00:00:05]} 29.
dxe5 {[%clk 00:00:18]} {[%emt 00:00:05]} Rc4+ {[%clk 00:10:31]} {[%emt
00:00:11]} 30. Ke3 {[%clk 00:00:16]} {[%emt 00:00:05]} Rd3+ {[%clk 00:10:35]}
{[%emt 00:00:03]} 31. Kf2 {[%clk 00:00:15]} {[%emt 00:00:06]} Rc2+ {[%clk
00:10:26]} {[%emt 00:00:13]} 32. Kf1 {[%clk 00:00:12]} {[%emt 00:00:07]} Rdc3
{[%clk 00:10:22]} {[%emt 00:00:09]} 33. g3 {[%clk 00:00:12]} {[%emt 00:00:05]}
Rc1+ {[%clk 00:10:07]} {[%emt 00:00:21]} 34. Rxc1 {[%clk 00:00:16]} {[%emt
00:00:01]} Rxc1+ {[%clk 00:10:11]} 35. Kf2 {[%clk 00:00:19]} {[%emt 00:00:02]}
Nh3+ {[%clk 00:10:15]} {[%emt 00:00:01]} 36. Kg2 {[%clk 00:00:20]} {[%emt
00:00:03]} Nxg1 {[%clk 00:10:14]} {[%emt 00:00:06]} 37. a4 {[%clk 00:00:24]}
{[%emt 00:00:01]} Ra1 {[%clk 00:10:14]} {[%emt 00:00:05]} 38. e6 {[%clk
00:00:28]} {[%emt 00:00:01]} fxe6 {[%clk 00:10:17]} {[%emt 00:00:02]} 39. a5
{[%clk 00:00:31]} {[%emt 00:00:02]} Rxa5 {[%clk 00:10:20]} {[%emt 00:00:01]} 40.
g4 {[%clk 00:00:32]} {[%emt 00:00:04]} b5 {[%clk 00:10:24]} {[%emt 00:00:02]}
41. g5 {[%clk 00:00:35]} {[%emt 00:00:02]} hxg5 {[%clk 00:10:28]} {[%emt
00:00:01]} 42. h4 {[%clk 00:00:39]} {[%emt 00:00:01]} b4 {[%clk 00:10:31]}
{[%emt 00:00:02]} 43. h5 {[%clk 00:00:37]} {[%emt 00:00:06]} b3 {[%clk
00:10:35]} {[%emt 00:00:01]} 44. h6 {[%clk 00:00:41]} {[%emt 00:00:02]} b2
{[%clk 00:10:37]} {[%emt 00:00:03]} 45. h7+ {[%clk 00:00:45]} Kxh7 {[%clk
00:10:41]} {[%emt 00:00:02]} 46. Kh2 {[%clk 00:00:42]} {[%emt 00:00:08]} Nf3+
{[%clk 00:10:42]} {[%emt 00:00:03]} 47. Kg2 {[%clk 00:00:43]} {[%emt 00:00:04]}
b1=Q {[%clk 00:10:42]} {[%emt 00:00:05]} 48. Kg3 {[%clk 00:00:46]} {[%emt
00:00:02]} Qg1+ {[%clk 00:10:42]} {[%emt 00:00:06]} 49. Kh3 {[%clk 00:00:47]}
{[%emt 00:00:03]} Qf1+ {[%clk 00:10:34]} {[%emt 00:00:13]} 50. Kg3 {[%clk
00:00:48]} {[%emt 00:00:04]} Nh2 {[%clk 00:10:30]} {[%emt 00:00:09]} 51. Kxh2
{[%clk 00:00:47]} {[%emt 00:00:06]} Ra2+ {[%clk 00:10:32]} {[%emt 00:00:03]} 52.
Kg3 {[%clk 00:00:50]} {[%emt 00:00:03]} Qf4+ {[%clk 00:10:34]} {[%emt
00:00:03]} 53. Kh3 {[%clk 00:00:53]} {[%emt 00:00:02]} g4+ {[%clk 00:10:37]}
{[%emt 00:00:02]} 54. Kh4 {[%clk 00:00:55]} {[%emt 00:00:03]} g5+ {[%clk
00:10:40]} {[%emt 00:00:02]} 55. Kh5 {[%clk 00:00:58]} {[%emt 00:00:02]} Rh2#
{[%clk 00:10:41]} {[%emt 00:00:04]} 0-1



[ePGN "0.1;DGT LiveChess/2.2.6"]

[Event "MČR mládeže v rapid šachu 2024 H10"]
[Site "Harrachov, Czech Republic"]
[Date "????.??.??"]
[Round "4.1"]
[White "Zidek Damian"]
[Black "Lutskiy Mikhail"]
[Result "1-0"]
[TimeControl "20+5"]
[WhiteFideId "23761652"]
[BlackFideId "23744308"]
[WhiteElo "1763"]
[BlackElo "1729"]

1. d4 {[%clk 00:20:07]} {[%emt 00:00:02]} Nf6 {[%clk 00:20:06]} {[%emt
00:00:04]} 2. c4 {[%clk 00:20:12]} e6 {[%clk 00:20:10]} {[%emt 00:00:02]} 3.
Nc3 {[%clk 00:20:15]} {[%emt 00:00:01]} d5 {[%clk 00:20:14]} 4. cxd5 exd5
{[%clk 00:20:17]} 5. Bg5 {[%clk 00:20:22]} {[%emt 00:00:02]} Be7 {[%clk
00:20:18]} {[%emt 00:00:04]} 6. e3 {[%clk 00:20:26]} {[%emt 00:00:01]} Nc6
{[%clk 00:20:19]} {[%emt 00:00:06]} 7. Bd3 {[%clk 00:20:25]} {[%emt 00:00:04]}
O-O {[%clk 00:20:18]} {[%emt 00:00:06]} 8. Nge2 {[%clk 00:20:28]} {[%emt
00:00:03]} h6 {[%clk 00:20:11]} {[%emt 00:00:13]} 9. Bh4 {[%clk 00:20:25]}
{[%emt 00:00:07]} Be6 {[%clk 00:20:09]} {[%emt 00:00:07]} 10. O-O {[%clk
00:20:27]} {[%emt 00:00:03]} Qd7 {[%clk 00:18:55]} {[%emt 00:01:18]} 11. Rc1
{[%clk 00:19:21]} {[%emt 00:01:11]} Nb4 {[%clk 00:18:09]} {[%emt 00:00:51]} 12.
Bb1 {[%clk 00:19:20]} {[%emt 00:00:07]} b6 {[%clk 00:16:45]} {[%emt 00:01:29]}
13. a3 {[%clk 00:19:16]} {[%emt 00:00:08]} Nc6 {[%clk 00:16:23]} {[%emt
00:00:26]} 14. Qc2 {[%clk 00:19:10]} {[%emt 00:00:13]} g6 {[%clk 00:16:09]}
{[%emt 00:00:19]} 15. Nf4 {[%clk 00:18:31]} {[%emt 00:00:43]} Bf5 {[%clk
00:15:36]} {[%emt 00:00:37]} 16. Qb3 {[%clk 00:17:56]} {[%emt 00:00:39]} Bxb1
{[%clk 00:14:01]} {[%emt 00:01:40]} 17. Rxb1 {[%clk 00:17:57]} {[%emt
00:00:05]} g5 {[%clk 00:13:56]} {[%emt 00:00:10]} 18. Bxg5 {[%clk 00:17:42]}
{[%emt 00:00:20]} hxg5 {[%clk 00:13:59]} {[%emt 00:00:02]} 19. Nfxd5 {[%clk
00:17:45]} {[%emt 00:00:02]} Kg7 {[%clk 00:13:30]} {[%emt 00:00:34]} 20. Nxf6
{[%clk 00:17:11]} {[%emt 00:00:39]} Bxf6 {[%clk 00:13:29]} {[%emt 00:00:05]} 21.
Ne4 {[%clk 00:16:53]} {[%emt 00:00:22]} Be7 {[%clk 00:12:24]} {[%emt 00:01:11]}
22. Qc3 {[%clk 00:16:33]} {[%emt 00:00:25]} Qd5 {[%clk 00:10:54]} {[%emt
00:01:31]} 23. Ng3 {[%clk 00:16:01]} {[%emt 00:00:41]} f5 {[%clk 00:07:17]}
{[%emt 00:03:43]} 24. Rbc1 {[%clk 00:14:58]} {[%emt 00:01:07]} Nd8 {[%clk
00:06:14]} {[%emt 00:01:08]} 25. Qxc7 {[%clk 00:14:33]} {[%emt 00:00:30]} Qd6
{[%clk 00:05:31]} {[%emt 00:00:45]} 26. Qxd6 {[%clk 00:13:21]} {[%emt
00:01:21]} Bxd6 {[%clk 00:05:34]} {[%emt 00:00:03]} 27. Ne2 {[%clk 00:13:25]}
Rh8 {[%clk 00:05:23]} {[%emt 00:00:14]} 28. g3 {[%clk 00:13:02]} {[%emt
00:00:29]} Nf7 {[%clk 00:05:05]} {[%emt 00:00:23]} 29. Rc6 {[%clk 00:12:45]}
{[%emt 00:00:22]} Rh6 {[%clk 00:04:58]} {[%emt 00:00:13]} 30. Kg2 {[%clk
00:12:40]} {[%emt 00:00:08]} g4 {[%clk 00:04:24]} {[%emt 00:00:40]} 31. Nc3
{[%clk 00:12:09]} {[%emt 00:00:36]} Ng5 {[%clk 00:03:06]} {[%emt 00:01:24]} 32.
Nb5 {[%clk 00:11:34]} {[%emt 00:00:40]} Ne4 {[%clk 00:01:34]} {[%emt 00:01:34]}
33. Nxd6 {[%clk 00:10:41]} {[%emt 00:01:01]} Rxd6 {[%clk 00:01:08]} {[%emt
00:00:31]} 34. Rc7+ {[%clk 00:10:39]} {[%emt 00:00:06]} Kg6 {[%clk 00:01:03]}
{[%emt 00:00:08]} 35. Rfc1 {[%clk 00:10:29]} {[%emt 00:00:16]} a5 {[%clk
00:01:01]} {[%emt 00:00:10]} 36. R1c6 {[%clk 00:10:15]} {[%emt 00:00:19]} Rad8
{[%clk 00:01:01]} {[%emt 00:00:04]} 37. f3 {[%clk 00:09:40]} {[%emt 00:00:42]}
gxf3+ {[%clk 00:01:04]} {[%emt 00:00:10]} 38. Kxf3 {[%clk 00:09:43]} {[%emt
00:00:02]} Ng5+ {[%clk 00:01:08]} {[%emt 00:00:01]} 39. Kf4 {[%clk 00:08:36]}
{[%emt 00:01:12]} Ne6+ {[%clk 00:01:11]} {[%emt 00:00:03]} 40. Ke5 {[%clk
00:08:34]} {[%emt 00:00:05]} Nxc7 {[%clk 00:00:56]} {[%emt 00:00:23]} 41. Rxd6+
{[%clk 00:08:37]} {[%emt 00:00:02]} Rxd6 {[%clk 00:01:00]} {[%emt 00:00:01]} 42.
Kxd6 {[%clk 00:08:40]} {[%emt 00:00:02]} Ne8+ {[%clk 00:00:53]} {[%emt
00:00:11]} 43. Kc6 {[%clk 00:08:42]} {[%emt 00:00:03]} Nf6 {[%clk 00:00:57]} 44.
Kxb6 {[%clk 00:08:44]} {[%emt 00:00:04]} Nd5+ {[%clk 00:01:02]} 45. Kxa5 {[%clk
00:08:43]} {[%emt 00:00:06]} Nxe3 {[%clk 00:01:06]} {[%emt 00:00:01]} 46. b4
{[%clk 00:08:46]} {[%emt 00:00:02]} Ng4 {[%clk 00:01:04]} {[%emt 00:00:06]} 47.
b5 {[%clk 00:08:50]} {[%emt 00:00:02]} Nf6 {[%emt 00:00:08]} 48. b6 {[%clk
00:08:44]} {[%emt 00:00:10]} Nd7 {[%clk 00:01:06]} {[%emt 00:00:01]} 49. Ka6
{[%clk 00:08:37]} {[%emt 00:00:12]} Kh5 {[%clk 00:01:10]} {[%emt 00:00:01]} 50.
h3 {[%clk 00:08:39]} {[%emt 00:00:03]} Kg6 {[%clk 00:01:09]} {[%emt 00:00:06]}
51. Ka7 {[%clk 00:08:42]} {[%emt 00:00:03]} Kf6 {[%clk 00:01:13]} {[%emt
00:00:01]} 52. b7 {[%clk 00:08:46]} Ke6 {[%clk 00:01:15]} {[%emt 00:00:03]} 53.
b8=Q {[%clk 00:08:41]} {[%emt 00:00:09]} Nxb8 54. Kxb8 {[%clk 00:08:43]} Kd5
{[%clk 00:01:23]} 55. h4 {[%clk 00:08:47]} {[%emt 00:00:01]} Kxd4 {[%clk
00:01:27]} {[%emt 00:00:02]} 56. h5 {[%clk 00:08:52]} Ke5 {[%clk 00:01:31]}
{[%emt 00:00:01]} 57. a4 {[%clk 00:08:55]} {[%emt 00:00:02]} Kf6 {[%clk
00:01:35]} 58. a5 {[%clk 00:08:59]} Kg5 {[%clk 00:01:39]} 59. a6 {[%clk
00:09:03]} {[%emt 00:00:02]} Kxh5 {[%clk 00:01:43]} {[%emt 00:00:01]} 60. a7
{[%clk 00:09:07]} Kg4 {[%clk 00:01:47]} 61. a8=Q {[%clk 00:09:09]} {[%emt
00:00:03]} Kxg3 {[%clk 00:01:50]} {[%emt 00:00:02]} 62. Qh1 {[%clk 00:09:11]}
{[%emt 00:00:02]} f4 {[%clk 00:01:54]} {[%emt 00:00:01]} 63. Qf1 {[%clk
00:09:15]} f3 {[%clk 00:01:58]} {[%emt 00:00:01]} 64. Kc7 {[%clk 00:09:18]}
{[%emt 00:00:02]} f2 {[%clk 00:02:02]} {[%emt 00:00:01]} 65. Kd6 {[%clk
00:09:22]} {[%emt 00:00:01]} Kf3 {[%clk 00:02:06]} 66. Ke5 {[%clk 00:09:26]}
Ke3 {[%clk 00:02:10]} {[%emt 00:00:02]} 67. Kd5 {[%clk 00:09:27]} {[%emt
00:00:03]} Kf3 {[%clk 00:02:13]} {[%emt 00:00:02]} 68. Kd4 {[%clk 00:09:30]}
{[%emt 00:00:03]} Kg3 {[%clk 00:02:14]} {[%emt 00:00:04]} 69. Ke3 {[%clk
00:09:33]} {[%emt 00:00:01]} Kh4 {[%clk 00:02:21]} {[%emt 00:00:07]} 70. Qxf2+
{[%clk 00:09:38]} {[%emt 00:00:02]} Kg4 {[%clk 00:02:25]} 71. Qf4+ {[%clk
00:09:41]} {[%emt 00:00:01]} Kh5 {[%clk 00:02:28]} 72. Qg3 {[%clk 00:09:44]}
1-0



[ePGN "0.1;DGT LiveChess/2.2.6"]

[Event "MČR mládeže v rapid šachu 2024 H10"]
[Site "Harrachov, Czech Republic"]
[Date "????.??.??"]
[Round "4.2"]
[White "Hlavacek Pavel"]
[Black "Bukovskij Dmitri"]
[Result "1/2-1/2"]
[TimeControl "20+5"]
[WhiteFideId "23761768"]
[BlackFideId "23749660"]
[WhiteElo "1641"]
[BlackElo "1700"]

1. d4 {[%clk 00:20:09]} d5 {[%clk 00:20:10]} {[%emt 00:00:01]} 2. c4 {[%emt
00:00:01]} e6 3. Nc3 {[%clk 00:20:16]} {[%emt 00:00:02]} Nf6 {[%clk 00:20:19]}
4. Bg5 {[%clk 00:20:20]} Be7 {[%clk 00:20:20]} {[%emt 00:00:04]} 5. Nf3 {[%clk
00:20:23]} {[%emt 00:00:03]} c6 {[%clk 00:20:24]} 6. e3 {[%clk 00:20:26]}
{[%emt 00:00:02]} Nbd7 {[%clk 00:20:28]} {[%emt 00:00:01]} 7. cxd5 {[%clk
00:20:27]} {[%emt 00:00:05]} exd5 {[%clk 00:20:28]} {[%emt 00:00:06]} 8. Bd3
{[%clk 00:20:29]} {[%emt 00:00:03]} h6 {[%clk 00:20:31]} {[%emt 00:00:02]} 9.
Bh4 {[%clk 00:20:30]} {[%emt 00:00:04]} O-O {[%clk 00:20:35]} {[%emt 00:00:02]}
10. O-O {[%clk 00:20:32]} {[%emt 00:00:03]} Re8 {[%clk 00:20:39]} 11. Qc2
{[%clk 00:20:18]} {[%emt 00:00:19]} Ne4 {[%clk 00:20:26]} {[%emt 00:00:18]} 12.
Bxe7 {[%clk 00:20:06]} {[%emt 00:00:17]} Qxe7 {[%clk 00:20:29]} {[%emt
00:00:02]} 13. Rab1 {[%clk 00:19:40]} {[%emt 00:00:30]} f5 {[%clk 00:20:30]}
{[%emt 00:00:05]} 14. Nd2 {[%clk 00:18:35]} {[%emt 00:01:09]} Ndf6 {[%clk
00:20:19]} {[%emt 00:00:15]} 15. Ndxe4 {[%clk 00:18:20]} {[%emt 00:00:21]} fxe4
{[%clk 00:20:20]} {[%emt 00:00:04]} 16. Be2 {[%clk 00:18:15]} {[%emt 00:00:09]}
Bg4 {[%clk 00:19:50]} {[%emt 00:00:36]} 17. b4 {[%clk 00:17:49]} {[%emt
00:00:31]} a6 {[%clk 00:18:31]} {[%emt 00:01:24]} 18. a4 {[%clk 00:17:00]}
{[%emt 00:00:53]} Bxe2 {[%clk 00:18:05]} {[%emt 00:00:31]} 19. Nxe2 {[%clk
00:16:34]} {[%emt 00:00:31]} Rac8 {[%clk 00:17:46]} {[%emt 00:00:24]} 20. Qc5
{[%clk 00:16:10]} {[%emt 00:00:28]} Qc7 {[%clk 00:17:10]} {[%emt 00:00:43]} 21.
Ng3 {[%clk 00:14:49]} {[%emt 00:01:26]} Nd7 {[%emt 00:01:10]} 22. Qc2 {[%clk
00:14:15]} {[%emt 00:00:37]} Nb6 {[%clk 00:16:07]} {[%emt 00:00:05]} 23. Rfc1
{[%clk 00:12:33]} {[%emt 00:01:45]} Nc4 {[%clk 00:15:54]} {[%emt 00:00:19]} 24.
Qe2 {[%clk 00:11:58]} {[%emt 00:00:37]} Rf8 {[%clk 00:15:12]} {[%emt 00:00:50]}
25. Nf1 {[%clk 00:11:29]} {[%emt 00:00:34]} Rf6 {[%clk 00:13:48]} {[%emt
00:01:29]} 26. Nd2 {[%clk 00:10:49]} {[%emt 00:00:45]} Nd6 {[%clk 00:13:52]}
{[%emt 00:00:02]} 27. b5 {[%emt 00:00:18]} axb5 {[%clk 00:12:00]} {[%emt
00:01:56]} 28. axb5 {[%clk 00:10:35]} {[%emt 00:00:07]} Rcf8 {[%clk 00:11:11]}
{[%emt 00:00:54]} 29. bxc6 {[%clk 00:09:28]} {[%emt 00:01:12]} bxc6 {[%clk
00:10:48]} {[%emt 00:00:28]} 30. Rf1 {[%clk 00:08:34]} {[%emt 00:00:57]} Qf7
{[%clk 00:09:45]} {[%emt 00:01:10]} 31. Rbc1 {[%clk 00:08:15]} {[%emt
00:00:25]} Nb5 {[%clk 00:09:28]} {[%emt 00:00:22]} 32. Nb3 {[%clk 00:07:42]}
{[%emt 00:00:37]} Ra8 {[%clk 00:08:02]} {[%emt 00:01:32]} 33. Ra1 {[%clk
00:07:10]} {[%emt 00:00:37]} Qe8 {[%clk 00:08:00]} {[%emt 00:00:07]} 34. Rxa8
{[%clk 00:06:45]} {[%emt 00:00:30]} Qxa8 {[%clk 00:08:04]} {[%emt 00:00:02]} 35.
Ra1 {[%clk 00:06:49]} Qb7 {[%clk 00:07:11]} {[%emt 00:00:58]} 36. Nc5 {[%clk
00:06:21]} {[%emt 00:00:33]} Qc7 {[%clk 00:04:07]} {[%emt 00:03:09]} 37. Qg4
{[%clk 00:03:21]} {[%emt 00:03:04]} Qf7 {[%clk 00:03:28]} {[%emt 00:00:45]} 38.
Qe2 {[%clk 00:02:49]} {[%emt 00:00:37]} Nd6 {[%clk 00:02:56]} {[%emt 00:00:37]}
39. Ra8+ {[%clk 00:02:04]} {[%emt 00:00:50]} Kh7 {[%clk 00:02:58]} {[%emt
00:00:03]} 40. Qa2 {[%clk 00:01:43]} {[%emt 00:00:25]} Nb5 {[%emt 00:00:21]} 41.
Qd2 {[%clk 00:01:20]} {[%emt 00:00:27]} Rg6 {[%clk 00:02:31]} {[%emt 00:00:19]}
42. g3 {[%clk 00:00:50]} {[%emt 00:00:34]} Rf6 {[%clk 00:01:44]} {[%emt
00:00:52]} 43. Rb8 {[%clk 00:00:37]} {[%emt 00:00:16]} Qa7 {[%clk 00:00:37]}
{[%emt 00:01:15]} 44. Rb7 {[%clk 00:00:32]} {[%emt 00:00:11]} Qa1+ {[%clk
00:00:40]} {[%emt 00:00:01]} 45. Kg2 {[%clk 00:00:35]} Nd6 {[%clk 00:00:29]}
{[%emt 00:00:17]} 46. Rd7 {[%clk 00:00:15]} {[%emt 00:00:25]} Nc4 {[%clk
00:00:15]} {[%emt 00:00:19]} 47. Qe2 {[%clk 00:00:19]} Qc1 {[%clk 00:00:08]}
{[%emt 00:00:12]} 48. Qg4 {[%clk 00:00:08]} {[%emt 00:00:16]} Rg6 {[%clk
00:00:09]} {[%emt 00:00:04]} 49. Qe2 {[%clk 00:00:08]} {[%emt 00:00:04]} Rf6
{[%emt 00:00:21]} 50. Qg4 1/2-1/2



[ePGN "0.1;DGT LiveChess/2.2.6"]